bitfinex-derivatives/quotes_SOLF0:USTF0_20241024
["timestamp","ask_amount","ask_price","bid_price","bid_amount"]
[1729798736213,2.8274,176.94,176.88,5.8037]
[1729798736406,2.8274,176.94,176.88,13.61255781]
[1729798737106,10.63605781,176.95,176.88,13.61255781]
[1729798737307,7.80885781,176.93,176.9,2.8279]
[1729798737708,10.63645781,176.93,176.88,9.19255781]
[1729798737908,7.80885781,176.92,176.89,2.828]
[1729798739607,7.80885781,176.92,176.87,10.63715781]
[1729798739807,7.80885781,176.91,176.87,2.8283]
[1729798740317,7.80885781,176.91,176.85,7.80885781]
[1729798741013,2.8281,176.9,176.86,2.8286]
[1729798741217,7.80885781,176.91,176.85,7.80885781]
[1729798741409,10.63715781,176.89,176.85,2.8286]
[1729798741609,7.80885781,176.89,176.85,2.8286]
[1729798742413,10.63695781,176.89,176.85,2.8286]
[1729798744216,7.80885781,176.92,176.87,7.80885781]
[1729798744417,12.24885781,176.94,176.88,7.80885781]
[1729798744917,2.8276,176.93,176.89,2.828]
[1729798745215,12.24885781,176.94,176.89,2.828]
[1729798745513,12.24885781,176.94,176.88,7.80885781]
[1729798746214,12.24885781,176.94,176.9,2.8279]
[1729798747508,12.24885781,176.94,176.88,7.80885781]
[1729798747709,7.2674,176.94,176.91,2.8278]
[1729798747911,10.63625781,176.94,176.91,2.8278]
[1729798748112,7.80885781,176.94,176.88,7.80885781]
[1729798748311,10.63605781,176.95,176.92,2.8276]
[1729798748622,1.4846,176.97,176.92,7.80885781]
[1729798748821,5.9246,176.97,176.92,7.80885781]
[1729798749218,7.80885781,176.96,176.92,7.80885781]
[1729798749617,7.80885781,176.96,176.89,4.44]
[1729798749821,2.8272,176.95,176.92,2.8275]
[1729798750722,2.8272,176.95,176.9,7.80885781]
[1729798751021,10.63595781,176.96,176.93,2.8275]
[1729798756425,9.62105321,176.96,176.93,2.8275]
[1729798757226,6.79395321,176.96,176.9,7.80885781]
[1729798757421,4.44,176.97,176.95,2.8272]
[1729798757624,4.42,177.0,176.93,7.80885781]
[1729798757827,2.8264,177.0,176.98,2.8267]
[1729798758027,5.9299,177.02,176.97,7.80885781]
[1729798758227,1.5099,177.02,176.97,7.80885781]
[1729798758624,10.63505781,177.01,176.98,2.8266]
[1729798758832,7.80885781,177.0,176.94,7.80885781]
[1729798759133,1.5099,177.02,176.94,7.80885781]
[1729798759333,10.63525781,177.0,176.97,2.8267]
[1729798763133,2.8264,177.0,176.97,2.8267]
[1729798764733,7.80885781,177.01,176.95,7.80885781]
[1729798764935,2.8266,176.99,176.96,2.8269]
[1729798765836,1.5099,177.02,176.95,7.80885781]
[1729798766025,9.31875781,177.02,176.97,7.80885781]
[1729798766225,7.80885781,177.02,176.97,7.80885781]
[1729798766632,5.661,177.49,176.93,4.42]
[1729798766633,4.42,177.1,177.01,7.80885781]
[1729798766931,7.80885781,177.08,177.02,7.80885781]
[1729798767329,4.42,177.1,176.99,7.80885781]
[1729798767536,2.8258,177.04,177.01,2.8262]
[1729798767734,7.80885781,177.05,176.99,7.80885781]
[1729798767929,7.80885781,177.04,176.98,7.80885781]
[1729798768130,2.8261,177.02,176.98,10.63545781]
[1729798768432,12.22885781,177.06,177.0,7.80885781]
[1729798768734,2.8257,177.04,177.01,2.8262]
[1729798768931,7.80885781,177.04,176.99,7.80885781]
[1729798769334,2.8258,177.04,177.01,2.8261]
[1729798769529,5.8189,177.13,177.03,7.80885781]
[1729798769734,7.80885781,177.09,177.03,7.80885781]
[1729798770239,7.80885781,177.09,176.99,4.42]
[1729798770240,4.42,177.09,176.99,4.42]
[1729798770434,7.80885781,177.06,177.0,7.80885781]
[1729798770836,2.8257,177.05,177.02,2.8259]
[1729798771032,2.8257,177.05,177.02,10.63475781]
[1729798771228,7.80885781,177.04,176.98,4.42]
[1729798771435,7.80885781,177.04,176.99,7.80885781]
[1729798771934,7.80885781,177.04,176.98,4.42]
[1729798772137,7.80885781,177.03,176.97,12.22885781]
[1729798772326,7.80885781,177.04,176.99,7.80885781]
[1729798772532,10.63455781,177.05,177.01,2.8261]
[1729798772831,7.80885781,177.05,177.01,2.8261]
[1729798773238,7.80885781,177.05,177.0,7.80885781]
[1729798774036,2.826,177.03,176.99,2.8264]
[1729798774234,7.80885781,177.04,176.98,7.80885781]
[1729798774737,2.8259,177.03,177.0,2.8263]
[1729798774936,7.80885781,177.01,176.95,4.42]
[1729798775137,7.80885781,177.01,176.95,12.22885781]
[1729798775340,7.80885781,177.02,176.97,7.80885781]
[1729798775538,4.42,177.05,176.95,4.42]
[1729798775539,7.80885781,177.04,176.98,7.80885781]
[1729798775737,2.8258,177.04,177.01,2.8262]
[1729798778636,2.8258,177.04,177.01,2.8261]
[1729798778940,2.8262,177.02,177.0,7.80885781]
[1729798779338,2.8262,177.02,176.98,7.80885781]
[1729798779637,10.63475781,177.03,177.0,2.8264]
[1729798779834,228.0,177.31,177.0,4.42]
[1729798780035,7.80885781,177.17,177.11,7.80885781]
[1729798780240,7.80885781,177.19,177.13,7.80885781]
[1729798780437,12.22885781,177.2,177.14,7.80885781]
[1729798780742,2.8234,177.19,177.15,10.63265781]
[1729798781437,12.22885781,177.2,177.01,1.4395]
[1729798781638,2.824,177.15,177.11,10.63335781]
[1729798782138,2.8243,177.14,177.09,7.80885781]
[1729798782338,2.8243,177.14,177.08,4.42]
[1729798783243,2.8243,177.14,177.1,2.8247]
[1729798784941,2.8243,177.14,177.07,16.63047621]
[1729798785141,2.8243,177.14,177.09,2.8249]
[1729798785441,1.427,177.17,177.07,12.21047621]
[1729798785643,12.21047621,177.13,177.04,2.8257]
[1729798785943,4.42,177.12,177.04,2.8257]
[1729798786148,12.21047621,177.11,177.01,5.8595]
[1729798786446,15.05987621,177.11,176.99,12.21047621]
[1729798786845,2.8256,177.06,177.01,2.8261]
[1729798787646,4.42,177.08,176.99,12.21047621]
[1729798789043,2.8256,177.05,177.01,2.8262]
[1729798789247,4.42,177.08,176.99,12.21047621]
[1729798789949,5.8686,177.08,176.99,12.21047621]
[1729798790251,5.8686,177.08,176.98,4.42]
[1729798790550,2.8256,177.05,176.99,2.8265]
[1729798790746,5.8686,177.08,176.98,4.42]
[1729798791142,2.8256,177.05,177.0,2.8263]
[1729798791343,5.8686,177.08,177.0,2.8263]
[1729798791845,2.8259,177.04,177.0,2.8263]
[1729798792150,2.8259,177.04,177.01,2.8262]
[1729798793748,2.8259,177.04,177.0,2.8263]
[1729798798545,2.8255,177.06,177.0,2.8263]
[1729798798750,5.8686,177.08,177.0,2.8263]
[1729798799053,2.8258,177.04,177.0,2.8263]
[1729798799656,2.8261,177.02,176.98,2.8266]
[1729798800352,2.8261,177.02,176.97,4.42]
[1729798800653,2.8259,177.03,176.99,2.8264]
[1729798802161,2.8261,177.02,176.99,2.8264]
[1729798802861,12.21047621,177.07,176.97,4.42]
[1729798803058,12.21047621,177.07,176.98,2.8267]
[1729798803462,12.21047621,177.04,176.92,12.21047621]
[1729798803762,2.8267,176.98,176.95,2.8271]
[1729798803963,12.21047621,177.04,176.95,2.8271]
[1729798804163,12.21047621,177.04,176.92,12.21047621]
[1729798804364,12.21047621,177.02,176.95,2.8271]
[1729798804663,2.8271,176.96,176.93,4.42]
[1729798804864,1.3982,177.01,176.93,4.42]
[1729798805259,2.8266,176.99,176.95,2.827]
[1729798805762,1.4507,177.03,176.96,12.21047621]
[1729798805966,2.826,177.03,176.97,4.42]
[1729798806355,2.826,177.03,176.99,2.8264]
[1729798806559,2.826,177.03,176.97,4.42]
[1729798806863,12.21047621,177.06,176.97,4.42]
[1729798807366,12.21047621,177.06,176.96,12.21047621]
[1729798807561,4.42,177.07,176.89,2.8569]
[1729798807562,2.8264,177.0,176.97,7.2467]
[1729798807963,2.8262,177.01,176.98,2.8266]
[1729798808165,2.8262,177.01,176.97,4.42]
[1729798808361,16.63047621,177.07,176.97,16.63047621]
[1729798808664,2.826,177.03,177.0,2.8264]
[1729798808969,16.63047621,177.07,176.97,16.63047621]
[1729798809265,2.8257,177.05,177.02,2.8259]
[1729798809668,4.42,177.07,176.99,12.21047621]
[1729798809964,16.63047621,177.07,176.97,12.21047621]
[1729798810169,12.21047621,177.03,176.96,4.42]
[1729798810371,12.21047621,177.03,176.97,2.8268]
[1729798810856,12.21047621,177.0,176.94,2.8273]
[1729798811061,12.21047621,177.0,176.89,2.8569]
[1729798811062,12.21047621,177.0,176.89,7.2769]
[1729798811467,2.8269,176.97,176.93,2.8275]
[1729798811663,13.70507621,177.0,176.91,12.21047621]
[1729798811968,2.8267,176.98,176.91,12.21047621]
[1729798812671,2.8267,176.98,176.94,2.8272]
[1729798813269,1.4946,177.0,176.94,2.8272]
[1729798813470,2.8269,176.97,176.94,2.8272]
[1729798813769,1.4946,177.0,176.94,2.8272]
[1729798814370,2.8268,176.98,176.94,2.8272]
[1729798814671,13.70507621,177.0,176.89,2.8569]
[1729798814970,12.21047621,176.98,176.9,4.42]
[1729798815159,12.21047621,176.98,176.87,12.21047621]
[1729798815362,2.8273,176.95,176.9,2.8279]
[1729798815665,12.21047621,176.96,176.9,2.8279]
[1729798815970,2.8275,176.93,176.9,2.8279]
[1729798818272,4.42,176.97,176.87,16.63047621]
[1729798818474,2.8271,176.96,176.93,2.8274]
[1729798819176,2.8272,176.95,176.93,2.8274]
[1729798819473,12.21047621,176.98,176.93,2.8274]
[1729798820377,2.8272,176.95,176.93,2.8274]
[1729798820568,2.8272,176.95,176.89,12.21047621]
[1729798820569,2.8272,176.95,176.92,2.8276]
[1729798820874,2.8275,176.94,176.87,16.63047621]
[1729798821069,2.8275,176.94,176.91,2.8277]
[1729798822069,12.21047621,176.98,176.91,2.8277]
[1729798822280,2.8275,176.93,176.91,2.8277]
[1729798828171,12.21047621,176.98,176.87,16.63047621]
[1729798828366,5.7857,177.01,176.94,12.21047621]
[1729798828569,4.42,177.05,176.96,12.21047621]
[1729798828976,2.8261,177.02,176.99,2.8265]
[1729798833483,4.42,177.05,176.99,2.8265]
[1729798833782,2.8262,177.01,176.99,2.8265]
[1729798834984,2.8262,177.01,176.98,2.8266]
[1729798836276,4.42,177.05,176.96,12.21047621]
[1729798836484,12.21047621,177.04,176.94,16.63047621]
[1729798836681,12.21047621,177.02,176.9,12.21047621]
[1729798836984,2.8273,176.95,176.92,2.8275]
[1729798837283,8.8913,177.01,176.92,12.21047621]
[1729798838287,2.827,176.97,176.94,2.8272]
[1729798840085,2.8267,176.98,176.96,2.827]
[1729798840685,8.8913,177.01,176.96,2.827]
[1729798840884,12.21047621,177.05,176.94,12.21047621]
[1729798841087,4.42,177.04,176.96,12.21047621]
[1729798841485,2.8261,177.02,176.96,12.21047621]
[1729798842886,2.8261,177.02,176.98,2.8265]
[1729798843283,4.42,177.04,176.96,12.21047621]
[1729798843485,12.21047621,177.07,176.96,12.21047621]
[1729798843685,4.42,177.06,176.96,12.21047621]
[1729798844487,2.8259,177.03,176.99,2.8265]
[1729798845586,2.8259,177.03,176.96,12.21047621]
[1729798845786,2.8259,177.03,177.0,2.8263]
[1729798846288,2.8265,177.0,176.97,2.8268]
[1729798846681,12.21047621,177.02,176.93,4.42]
[1729798846989,16.63047621,177.02,176.95,2.827]
[1729798847888,4.42,177.02,176.94,12.21047621]
[1729798848084,4.42,177.02,176.96,12.21047621]
[1729798848391,4.42,177.05,176.96,12.21047621]
[1729798848879,2.8261,177.02,176.99,2.8265]
[1729798849389,2.8262,177.01,176.98,2.8266]
[1729798850392,2.8266,176.99,176.96,2.8269]
[1729798851191,12.21047621,177.02,176.92,16.63047621]
[1729798851392,16.63047621,177.05,176.95,12.21047621]
[1729798851589,4.42,177.05,176.97,12.21047621]
[1729798851991,2.8259,177.03,177.0,2.8263]
[1729798852191,4.42,177.05,176.97,12.21047621]
[1729798853007,4.42,177.05,177.01,2.8261]
[1729798853008,2.8258,177.04,177.01,2.8261]
[1729798853910,2.8249,177.1,177.06,2.8253]
[1729798854308,4.42,177.12,177.06,2.8253]
[1729798854606,2.825,177.09,177.06,2.8253]
[1729798861314,2.8246,177.12,177.08,2.825]
[1729798861511,2.8246,177.12,177.06,12.21047621]
[1729798861714,4.42,177.15,177.06,12.21047621]
[1729798862918,2.8245,177.12,177.09,2.8249]
[1729798863318,4.42,177.15,177.09,2.8249]
[1729798864422,2.8246,177.12,177.09,2.8249]
[1729798866622,2.8246,177.11,177.09,2.8249]
[1729798867521,12.21047621,177.14,177.04,12.21047621]
[1729798868124,2.8249,177.1,177.07,2.8252]
[1729798868522,4.42,177.15,177.06,12.21047621]
[1729798868728,2.8244,177.13,177.09,2.8249]
[1729798869019,4.42,177.15,177.09,2.8249]
[1729798869225,2.8244,177.13,177.1,2.8247]
[1729798869425,4.42,177.15,177.1,2.8247]
[1729798870221,16.63047621,177.15,177.04,12.21047621]
[1729798871429,2.8249,177.1,177.07,2.8251]
[1729798874630,16.63047621,177.15,177.07,2.8251]
[1729798874830,2.8249,177.09,177.07,2.8251]
[1729798875431,2.8251,177.08,177.03,4.42]
[1729798875632,16.63047621,177.15,177.03,16.63047621]
[1729798876234,2.825,177.09,177.06,2.8252]
[1729798876531,2.825,177.09,177.03,16.63047621]
[1729798876737,2.825,177.09,177.06,2.8253]
[1729798876937,2.825,177.09,177.03,16.63047621]
[1729798877941,2.825,177.09,177.06,2.8253]
[1729798878937,16.63047621,177.15,177.05,12.21047621]
[1729798879131,4.4556,177.16,177.08,12.21047621]
[1729798879540,4.4,177.15,177.08,12.21047621]
[1729798879740,2.8246,177.12,177.09,2.8248]
[1729798881137,4.4,177.15,177.09,2.8248]
[1729798881343,4.4,177.15,177.05,12.21047621]
[1729798881835,2.825,177.09,177.05,12.21047621]
[1729798882037,2.825,177.09,177.07,2.8252]
[1729798882340,2.8248,177.1,177.07,2.8252]
[1729798884039,16.61047621,177.11,176.98,2.8902]
[1729798884239,12.21047621,177.09,176.98,18.03457621]
[1729798884444,2.8489,177.08,176.98,12.21047621]
[1729798884843,1.4462,177.1,177.03,12.21047621]
[1729798885138,5.8462,177.1,177.03,12.21047621]
[1729798885342,5.8462,177.1,177.04,2.8256]
[1729798886242,5.8462,177.1,177.05,7.8102377]
[1729798886443,2.8253,177.07,177.01,4.4]
[1729798886643,5.8462,177.1,177.04,7.8102377]
[1729798887046,2.8254,177.07,177.04,7.8102377]
[1729798889642,2.8254,177.07,177.04,10.6359377]
[1729798889944,5.8462,177.1,177.04,10.6359377]
[1729798890151,2.8254,177.06,177.04,10.6359377]
[1729798892146,2.8254,177.06,177.04,2.8257]
[1729798892347,2.8254,177.06,177.04,7.8102377]
[1729798892541,5.8462,177.1,176.98,1.4327]
[1729798892542,2.826,177.03,176.98,1.4327]
[1729798892748,7.8102377,177.05,176.98,7.8102377]
[1729798893045,2.9318,177.06,177.04,7.8102377]
[1729798893348,2.8254,177.06,177.04,7.8102377]
[1729798893550,5.8462,177.1,177.04,7.8102377]
[1729798893750,2.8252,177.08,177.06,7.8102377]
[1729798893947,5.8462,177.1,177.06,7.8102377]
[1729798894145,2.8252,177.07,177.06,7.8102377]
[1729798896355,2.8252,177.07,177.05,7.8102377]
[1729798897651,2.8254,177.06,177.05,7.8102377]
[1729798899155,13.6564377,177.1,177.05,7.8102377]
[1729798899352,2.8251,177.08,177.06,7.8102377]
[1729798899547,5.8462,177.1,177.06,7.8102377]
[1729798900855,1.4335,177.13,177.08,7.8102377]
[1729798901056,5.8335,177.13,177.08,7.8102377]
[1729798901356,5.8335,177.13,177.09,7.8102377]
[1729798902260,2.8248,177.1,177.09,7.8102377]
[1729798910863,5.8335,177.13,177.09,10.6350377]
[1729798911262,1.4335,177.13,177.05,4.4]
[1729798911464,2.8245,177.12,177.1,7.8102377]
[1729798912469,2.8245,177.12,177.09,2.8248]
[1729798912667,2.8245,177.12,177.09,10.6350377]
[1729798919367,9.2437377,177.13,177.02,1.4577]
[1729798919571,7.8102377,177.1,177.05,7.8102377]
[1729798919965,7.8102377,177.1,177.03,4.4]
[1729798920163,2.8254,177.06,177.04,2.8257]
[1729798920471,7.8102377,177.09,177.04,2.8257]
[1729798920671,2.8253,177.07,177.04,2.8257]
[1729798922069,2.8258,177.04,177.02,2.826]
[1729798922275,7.8102377,177.06,177.01,7.8102377]
[1729798922471,2.6526,177.09,177.01,7.8102377]
[1729798922669,2.6526,177.09,177.04,7.8102377]
[1729798923076,2.8254,177.07,177.05,2.8255]
[1729798923381,2.8254,177.07,177.04,7.8102377]
[1729798924072,2.8254,177.07,177.05,2.8256]
[1729798924979,4.4,177.14,177.06,7.8102377]
[1729798925174,4.4,177.14,176.99,5.653]
[1729798925175,4.4,177.14,177.11,7.8102377]
[1729798925477,2.8244,177.12,177.11,7.8102377]
[1729798927076,2.8244,177.12,177.09,10.6351377]
[1729798928179,2.8244,177.12,177.11,7.8102377]
[1729798933982,2.8243,177.13,177.11,10.6348377]
[1729798934186,2.4528,177.17,177.12,7.8102377]
[1729798934387,2.4528,177.17,177.15,7.8102377]
[1729798934586,2.824,177.15,177.13,7.8102377]
[1729798935288,2.824,177.15,177.13,10.6345377]
[1729798939804,2.824,177.15,177.13,7.8102377]
[1729798941301,2.824,177.15,177.13,10.6345377]
[1729798946408,7.8102377,177.14,177.08,4.4]
[1729798946604,7.8102377,177.13,177.07,7.8102377]
[1729798946804,7.8102377,177.12,177.06,12.2102377]
[1729798946997,2.825,177.09,177.06,10.6355377]
[1729798947502,2.8252,177.08,177.05,2.8255]
[1729798947700,7.8102377,177.12,177.05,7.8102377]
[1729798948699,2.8248,177.1,177.07,2.8252]
[1729798948903,2.8248,177.1,177.07,10.6354377]
[1729798951101,2.8248,177.1,177.07,7.8102377]
[1729798951303,2.8248,177.1,177.08,2.8251]
[1729798951607,2.8248,177.1,177.07,7.8102377]
[1729798952007,7.8102377,177.12,177.03,4.4]
[1729798952203,2.825,177.09,177.06,7.8102377]
[1729798952706,2.825,177.09,177.01,2.523]
[1729798952707,1.2717,177.17,177.08,7.8102377]
[1729798952906,9.0819377,177.17,177.12,7.8102377]
[1729798953405,2.824,177.15,177.12,10.6346377]
[1729798954508,2.824,177.15,177.13,2.8242]
[1729798954807,2.824,177.15,177.12,7.8102377]
[1729798955210,2.824,177.15,177.12,10.6346377]
[1729798957199,2.824,177.15,177.13,2.8243]
[1729798957398,2.824,177.15,177.12,7.8102377]
[1729798957809,2.824,177.15,177.12,10.6346377]
[1729798958109,2.8242,177.14,177.12,10.6346377]
[1729798958710,2.8236,177.18,177.15,2.8239]
[1729798958910,2.8236,177.18,177.11,4.4]
[1729798958911,12.2102377,177.21,177.16,7.8102377]
[1729798959100,7.8102377,177.2,177.14,10.6343377]
[1729798959599,3.6752,177.23,177.19,10.6335377]
[1729798959801,3.6752,177.23,177.12,2.4944]
[1729798960003,2.8229,177.22,177.18,7.8102377]
[1729798960304,4.4,177.25,177.2,7.8102377]
[1729798960809,4.4,177.25,177.23,7.8102377]
[1729798961010,4.4,177.28,177.23,7.8102377]
[1729798961211,7.2219,177.28,177.23,7.8102377]
[1729798961511,4.4,177.28,177.23,7.8102377]
[1729798961713,15.8982377,177.29,177.23,7.8102377]
[1729798962111,2.8222,177.27,177.24,7.8102377]
[1729798962512,8.088,177.29,177.24,7.8102377]
[1729798962710,2.8221,177.27,177.24,7.8102377]
[1729798963108,60.98,177.33,177.26,7.8102377]
[1729798963313,2.8218,177.29,177.26,7.8102377]
[1729798966013,2.8223,177.26,177.24,7.8102377]
[1729798966609,2.8223,177.26,177.22,10.6329377]
[1729798967708,7.8102377,177.25,177.19,4.4]
[1729798967918,7.8102377,177.25,177.19,7.8102377]
[1729798968117,7.8102377,177.24,177.18,7.8102377]
[1729798968413,2.8228,177.23,177.18,10.6336377]
[1729798968716,7.8102377,177.24,177.18,7.8102377]
[1729798969316,2.823,177.22,177.19,2.8233]
[1729798969515,7.8102377,177.24,177.15,4.4]
[1729798969710,7.8102377,177.22,177.17,7.8102377]
[1729798969910,2.8233,177.19,177.17,7.8102377]
[1729798970111,2.8233,177.19,177.16,7.8102377]
[1729798970718,2.8233,177.19,177.16,10.6340377]
[1729798970918,7.8102377,177.22,177.16,7.8102377]
[1729798970919,2.8236,177.18,177.16,7.8102377]
[1729798971721,7.8102377,177.22,177.16,7.8102377]
[1729798972221,2.8235,177.19,177.16,7.8102377]
[1729798973222,2.8235,177.19,177.16,10.6340377]
[1729798973522,2.8235,177.19,177.16,2.8238]
[1729798973723,7.8102377,177.2,177.14,12.2102377]
[1729798975327,2.8238,177.17,177.14,15.0343377]
[1729798976227,7.8102377,177.2,177.14,12.2102377]
[1729798976422,2.8235,177.18,177.15,2.8239]
[1729798976922,2.823,177.22,177.17,10.6338377]
[1729798977127,10.1813377,177.23,177.17,7.8102377]
[1729798977626,2.8233,177.2,177.17,10.6338377]
[1729798977827,7.8102377,177.21,177.17,2.8236]
[1729798978026,7.8102377,177.21,177.16,7.8102377]
[1729798978230,2.8234,177.19,177.16,10.6339377]
[1729798979530,7.8102377,177.21,177.16,7.8102377]
[1729798979727,7.8102377,177.19,177.09,1.2119]
[1729798979932,7.8102377,177.17,177.11,7.8102377]
[1729798980729,2.8241,177.15,177.12,2.8244]
[1729798980926,7.8102377,177.17,177.11,7.8102377]
[1729798981232,2.8243,177.14,177.11,10.6347377]
[1729798981632,7.8102377,177.17,177.11,7.8102377]
[1729798981834,2.824,177.15,177.12,2.8244]
[1729798982032,2.824,177.15,177.13,7.8102377]
[1729798983234,9.0332377,177.19,177.13,7.8102377]
[1729798984037,2.8239,177.16,177.13,10.6344377]
[1729798984229,7.8102377,177.18,177.13,2.8242]
[1729798984431,7.8102377,177.16,177.09,4.4]
[1729798984730,7.8102377,177.15,177.1,7.8102377]
[1729798984936,7.8102377,177.13,177.08,7.8102377]
[1729798985434,2.8247,177.11,177.08,10.6352377]
[1729798985635,7.8102377,177.13,177.08,10.6352377]
[1729798985837,2.8247,177.11,177.08,2.825]
[1729798986429,13.47199228,177.15,177.08,2.825]
[1729798986626,2.8248,177.1,177.08,2.825]
[1729798987030,2.8247,177.11,177.08,2.825]
[1729798989343,2.8254,177.06,177.03,2.8258]
[1729798989639,4.4,177.12,176.99,13.44179228]
[1729798989640,12.20039228,177.1,176.99,13.44179228]
[1729798990236,12.20039228,177.08,176.99,12.20039228]
[1729798990437,4.4,177.07,176.99,12.20039228]
[1729798990729,2.8258,177.04,177.0,2.8262]
[1729798990929,2.8258,177.04,176.97,5.5808]
[1729798991643,2.8258,177.04,177.01,2.8261]
[1729798992033,1.2509,177.07,176.99,12.20039228]
[1729798992239,1.2541,177.11,177.07,2.8251]
[1729798992442,1.2541,177.11,177.03,12.20039228]
[1729798992641,2.8249,177.09,177.03,12.20039228]
[1729798993246,1.2541,177.11,177.03,12.20039228]
[1729798994346,2.825,177.09,177.06,2.8253]
[1729798994749,1.2541,177.11,177.03,12.20039228]
[1729798995045,4.38,177.13,177.06,12.20039228]
[1729798995443,2.8246,177.12,177.08,2.8251]
[1729798995644,4.38,177.13,177.08,2.8251]
[1729798995945,2.8246,177.12,177.08,2.825]
[1729798996142,4.38,177.13,177.08,12.20039228]
[1729798996346,1.2509,177.14,177.08,12.20039228]
[1729798996538,2.8244,177.13,177.1,2.8246]
[1729798996741,1.2509,177.14,177.08,12.20039228]
[1729798997346,2.8245,177.12,177.09,2.8248]
[1729798998649,1.2509,177.14,177.08,12.20039228]
[1729798998946,2.825,177.09,177.05,16.58039228]
[1729798999147,2.825,177.09,177.05,12.20039228]
[1729799000249,2.825,177.09,177.06,2.8253]
[1729799001046,2.8254,177.07,177.03,2.8258]
[1729799001343,16.58039228,177.1,177.0,4.38]
[1729799001850,2.8255,177.06,177.03,2.8259]
[1729799002048,2.8255,177.06,177.0,4.38]
[1729799002550,2.8255,177.06,177.02,2.8259]
[1729799003350,12.20039228,177.08,177.02,2.8259]
[1729799003540,2.8257,177.05,177.02,2.8259]
[1729799003740,12.20039228,177.08,177.0,2.8263]
[1729799003941,2.8257,177.05,176.99,12.20039228]
[1729799004850,2.8257,177.05,177.02,2.8259]
[1729799005151,12.20039228,177.08,176.99,12.20039228]
[1729799005453,1.1756,177.09,177.03,2.8258]
[1729799005653,1.1756,177.09,176.99,12.20039228]
[1729799005952,2.8254,177.06,177.03,2.8258]
[1729799008152,5.5556,177.09,177.03,2.8258]
[1729799008353,2.8256,177.05,177.02,2.826]
[1729799011555,2.8256,177.05,176.99,12.20039228]
[1729799011758,2.8256,177.05,177.03,2.8259]
[1729799012158,16.96,177.4,177.04,28.78078456]
[1729799012355,12.20039228,177.27,177.15,12.20039228]
[1729799012651,2.3892,177.26,177.15,12.20039228]
[1729799012860,2.8226,177.24,177.18,2.8234]
[1729799013155,2.8226,177.24,177.15,12.20039228]
[1729799013358,2.3892,177.26,177.15,12.20039228]
[1729799013557,12.20039228,177.23,177.13,16.58039228]
[1729799013953,2.8227,177.24,177.16,2.8237]
[1729799014251,16.58039228,177.25,177.15,12.20039228]
[1729799014459,2.8229,177.22,177.17,2.8235]
[1729799014854,16.58039228,177.25,177.13,16.58039228]
[1729799015049,2.8233,177.2,177.15,2.8239]
[1729799015959,2.8233,177.2,177.11,16.58039228]
[1729799016160,2.8233,177.2,177.16,2.8238]
[1729799016360,12.20039228,177.22,177.13,12.20039228]
[1729799017354,4.38,177.21,177.13,12.20039228]
[1729799018259,12.20039228,177.2,177.11,16.58039228]
[1729799018454,13.45159228,177.2,177.11,4.38]
[1729799018754,2.8238,177.17,177.12,2.8243]
[1729799019059,13.45159228,177.2,177.12,2.8243]
[1729799019262,12.20039228,177.18,177.12,2.8243]
[1729799019557,4.38,177.17,177.12,2.8243]
[1729799019955,4.38,177.17,177.08,16.58039228]
[1729799020259,4.38,177.17,177.11,2.8246]
[1729799020457,2.8241,177.15,177.11,2.8246]
[1729799020863,5.6546,177.17,177.11,2.8246]
[1729799021463,5.6546,177.17,177.08,16.58039228]
[1729799022861,2.8241,177.15,177.11,2.8245]
[1729799023156,4.38,177.17,177.08,16.58039228]
[1729799023460,7.2037,177.17,177.14,2.824]
[1729799025863,2.8238,177.16,177.12,2.8243]
[1729799026065,2.8238,177.16,177.08,16.58039228]
[1729799026469,2.8238,177.16,177.13,2.8243]
[1729799027464,4.38,177.17,177.15,2.8239]
[1729799027869,2.8235,177.18,177.15,2.8239]
[1729799028665,4.38,177.19,177.1,12.20039228]
[1729799028870,4.38,177.19,177.08,4.38]
[1729799028871,2.823,177.21,177.18,2.8234]